bitfinex/quotes_SOLUSD_20230112
["timestamp","ask_amount","ask_price","bid_price","bid_amount"]
[1673537933018,118.59264873,16.029,16.018,20.0]
[1673537933229,118.59264873,16.029,16.019,20.0]
[1673537935554,118.59264873,16.029,16.018,20.0]
[1673537936190,118.59264873,16.029,16.017,20.0]
[1673537936399,0.55954873,16.029,16.017,20.0]
[1673537936723,0.55954873,16.029,16.019,20.0]
[1673537936932,0.55954873,16.029,16.019,40.0]
[1673537937117,0.55954873,16.029,16.02,20.0]
[1673537937537,0.55954873,16.029,16.021,2.96078836]
[1673537937759,0.55954873,16.029,16.021,20.0]
[1673537937981,0.55954873,16.029,16.022,20.0]
[1673537939776,0.55954873,16.029,16.019,20.0]
[1673537940177,0.55954873,16.029,16.01,46.52]
[1673537940178,46.8,16.028,16.012,46.84]
[1673537940392,17.0,16.027,16.011,66.85]
[1673537940712,20.0,16.025,16.011,20.0]
[1673537941238,17.0,16.024,16.011,20.0]
[1673537941660,46.8,16.027,16.011,20.0]
[1673537941869,46.8,16.027,16.011,66.85]
[1673537942180,119.6966,16.028,16.011,66.85]
[1673537942181,46.8,16.028,16.011,66.85]
[1673537942378,117.03124873,16.029,16.012,29.14875476]
[1673537942593,117.03124873,16.029,16.014,20.0]
[1673537942804,117.03124873,16.029,16.015,46.84]
[1673537943026,117.03124873,16.029,16.016,20.0]
[1673537943225,117.03124873,16.029,16.017,46.83]
[1673537943429,117.03124873,16.029,16.018,20.0]
[1673537943643,117.03124873,16.029,16.019,20.0]
[1673537944811,117.03124873,16.029,16.018,20.0]
[1673537945001,117.03124873,16.029,16.013,46.84]
[1673537945212,63.8,16.028,16.01,177.0661]
[1673537945422,63.8,16.028,16.01,130.2161]
[1673537945631,20.0,16.027,16.01,130.2161]
[1673537945844,63.8,16.026,16.01,110.2161]
[1673537946471,26.56,16.02,16.007,46.86]
[1673537946681,26.56,16.02,16.005,160.0665]
[1673537947017,17.0,16.019,16.005,160.0665]
[1673537947429,17.0,16.019,16.006,20.0]
[1673537947642,17.0,16.019,16.006,40.0]
[1673537948371,17.0,16.019,16.006,20.0]
[1673537948579,17.0,16.019,16.007,20.0]
[1673537949017,26.56,16.02,16.007,22.60375718]
[1673537949216,26.56,16.02,16.008,20.0]
[1673537949549,26.56,16.02,16.009,20.0]
[1673537949747,46.8,16.026,16.009,20.0]
[1673537949748,46.8,16.026,16.01,20.0]
[1673537949940,46.8,16.027,16.01,20.0]
[1673537950380,46.8,16.027,16.01,22.60375718]
[1673537950694,160.0225,16.028,16.011,20.0]
[1673537950896,160.0225,16.028,16.012,20.0]
[1673537951435,160.0225,16.028,16.013,46.84]
[1673537951647,113.2225,16.028,16.014,40.0]
[1673537953003,163.82124873,16.029,16.014,40.0]
[1673537953218,117.03124873,16.029,16.015,46.84]
[1673537953422,117.03124873,16.029,16.016,20.0]
[1673537953624,117.03124873,16.029,16.017,20.0]
[1673537953835,117.03124873,16.029,16.018,20.0]
[1673537955319,117.03124873,16.029,15.994,101.48947117]
[1673537955320,63.8,16.028,16.008,46.86]
[1673537955539,63.8,16.028,16.008,155.6785]
[1673537956581,63.8,16.028,16.01,20.0]
[1673537956978,46.8,16.028,16.011,20.0]
[1673537957193,46.8,16.028,16.012,20.0]
[1673537957426,17.0,16.027,16.012,20.0]
[1673537957615,46.8,16.026,16.012,20.0]
[1673537957826,17.0,16.025,16.012,20.0]
[1673537958044,46.81,16.024,16.012,20.0]
[1673537958271,46.81,16.024,16.01,20.0]
[1673537958469,17.0,16.023,16.01,20.0]
[1673537959097,207.61679977,16.029,16.01,20.0]
[1673537959098,19.31679977,16.029,16.011,46.85]
[1673537959313,0.55954873,16.029,16.012,20.0]
[1673537959512,0.55954873,16.029,16.013,66.84]
[1673537959723,0.55954873,16.029,16.015,20.0]
[1673537959941,0.55954873,16.029,16.016,178.4888]
[1673537960141,0.55954873,16.029,16.017,20.0]
[1673537960358,0.55954873,16.029,16.018,66.83]
[1673537960568,0.55954873,16.029,16.019,20.0]
[1673537961214,0.55954873,16.029,16.02,69.3514731]
[1673537961431,0.55954873,16.029,16.021,20.0]
[1673537961832,0.55954873,16.029,16.021,22.5314731]
[1673537963113,0.55954873,16.029,16.022,20.0]
[1673537965106,0.55954873,16.029,16.023,20.0]
[1673537965424,0.55954873,16.029,16.025,20.0]
[1673537966261,0.00954873,16.029,16.026,20.0]
[1673537966569,0.00954873,16.029,16.027,22.5314731]
[1673537966789,115.5712,16.038,16.028,20.0]
[1673537966992,115.5712,16.038,16.03,20.0]
[1673537967210,156.3555,16.045,16.031,20.0]
[1673537967523,133.29,16.05,16.032,20.0]
[1673537967524,46.74,16.049,16.032,20.0]
[1673537967720,46.74,16.049,16.033,20.0]
[1673537967924,46.75,16.046,16.033,20.0]
[1673537968139,20.0,16.045,16.033,20.0]
[1673537968363,46.75,16.046,16.033,20.0]
[1673537968572,46.75,16.046,16.033,22.5314731]
[1673537968893,20.0,16.045,16.033,20.0]
[1673537969108,20.0,16.045,16.031,20.0]
[1673537969844,17.0,16.044,16.031,20.0]
[1673537973494,17.0,16.044,16.027,20.0]
[1673537973926,46.75,16.046,16.027,20.0]
[1673537974983,20.0,16.045,16.027,20.0]
[1673537975192,20.0,16.045,16.029,20.0]
[1673537975386,66.75,16.046,16.029,20.0]
[1673537975598,219.8325,16.047,16.029,20.0]
[1673537975820,219.8325,16.047,16.029,139.1548]
[1673537976026,46.75,16.046,16.03,20.0]
[1673537976968,17.0,16.045,16.031,20.0]
[1673537977169,46.75,16.044,16.031,20.0]
[1673537977397,46.75,16.046,16.031,20.0]
[1673537979199,46.75,16.046,16.033,20.0]
[1673537979621,46.75,16.046,16.035,20.0]
[1673537980241,46.75,16.046,16.034,20.0]
[1673537981198,20.0,16.045,16.032,20.0]
[1673537981392,46.75,16.046,16.03,20.0]
[1673537981393,46.75,16.046,16.031,20.0]
[1673537981814,17.0,16.045,16.031,20.0]
[1673537982234,20.0,16.043,16.031,20.0]
[1673537982652,46.75,16.044,16.03,20.0]
[1673537982864,46.75,16.044,16.031,20.0]
[1673537983075,17.0,16.043,16.031,20.0]
[1673537983512,17.0,16.043,16.03,40.0]
[1673537983722,17.0,16.044,16.03,40.0]
[1673537984039,17.0,16.044,16.03,20.0]
[1673537984441,46.75,16.043,16.03,20.0]
[1673537984647,219.8325,16.047,16.031,20.0]
[1673537984861,46.75,16.046,16.031,20.0]
[1673537986150,111.8026,16.047,16.031,20.0]
[1673537986536,46.75,16.046,16.031,20.0]
[1673537987400,46.75,16.046,16.03,40.0]
[1673537988349,46.75,16.046,16.031,20.0]
[1673537990134,111.8026,16.047,16.031,20.0]
[1673537990345,46.75,16.046,16.031,20.0]
[1673537990862,111.8026,16.047,16.031,20.0]
[1673537991075,46.74,16.049,16.031,20.0]
[1673537991076,46.74,16.049,16.031,60.31700143]
[1673537991271,46.72,16.053,16.032,77.37089053]
[1673537991479,46.72,16.053,16.033,20.0]
[1673537991802,46.72,16.053,16.034,40.37]
[1673537992015,46.72,16.053,16.035,20.0]
[1673537992241,46.72,16.053,16.036,128.9463]
[1673537992760,46.72,16.053,16.037,20.0]
[1673537992973,46.72,16.053,16.038,20.0]
[1673537993377,17.67,16.05,16.034,20.37]
[1673537993579,63.74,16.049,16.034,20.37]
[1673537993786,82.49725104,16.049,16.034,20.37]
[1673537994021,20.0,16.047,16.034,20.37]
[1673537994212,63.75,16.046,16.034,20.37]
[1673537994424,20.0,16.045,16.034,20.37]
[1673537994634,46.75,16.044,16.03,115.2194]
[1673537995182,46.75,16.046,16.031,20.0]
[1673537995372,17.0,16.045,16.031,20.0]
[1673537995581,46.75,16.044,16.031,20.0]
[1673537996423,46.75,16.046,16.031,40.0]
[1673537996957,46.75,16.046,16.031,20.0]
[1673537997274,46.75,16.046,16.031,40.0]
[1673537997466,46.75,16.046,16.031,20.0]
[1673537997679,46.75,16.046,16.031,40.0]
[1673537997889,46.75,16.046,16.031,39.7]
[1673537998118,46.75,16.046,16.032,20.0]
[1673537998526,46.75,16.046,16.031,39.7]
[1673537998740,17.0,16.045,16.031,39.7]
[1673537998951,17.0,16.045,16.031,19.7]
[1673537999373,17.0,16.045,16.031,39.7]
[1673537999913,46.75,16.044,16.031,19.7]
[1673538000853,46.75,16.046,16.031,39.7]
[1673538001043,17.0,16.045,16.031,19.7]
[1673538001460,17.67,16.04,16.031,19.7]
[1673538001885,17.67,16.04,16.028,20.0]
[1673538002430,46.76,16.042,16.028,20.0]
[1673538002622,46.75,16.044,16.028,20.0]
[1673538002834,17.0,16.045,16.029,20.0]
[1673538003043,165.5127,16.047,16.03,20.0]
[1673538003257,165.5127,16.047,16.03,37.62]
[1673538003258,118.7727,16.047,16.03,37.62]
[1673538003880,118.7727,16.047,16.031,20.0]
[1673538005250,118.7727,16.047,16.032,20.0]
[1673538005466,63.75,16.046,16.03,20.0]
[1673538006003,63.75,16.046,16.027,31.72]
[1673538006004,20.0,16.045,16.028,20.0]
[1673538006199,63.75,16.044,16.028,20.0]
[1673538006526,63.75,16.044,16.028,40.0]
[1673538006733,46.75,16.044,16.028,40.0]
[1673538006946,307.0727,16.047,16.028,40.0]
[1673538006947,46.75,16.046,16.029,20.0]
[1673538007258,46.75,16.046,16.03,20.0]
[1673538007467,17.0,16.045,16.03,20.0]
[1673538007681,20.0,16.043,16.03,20.0]
[1673538007890,46.75,16.044,16.029,20.0]
[1673538008738,17.0,16.043,16.028,20.0]
[1673538008925,46.75,16.044,16.029,20.0]
[1673538009261,46.75,16.044,16.029,15.0]
[1673538009469,17.0,16.043,16.028,20.0]
[1673538009885,17.67,16.04,16.027,31.72]
[1673538010095,252.07,16.039,16.027,31.72]
[1673538010716,307.5447,16.038,16.027,26.72]
[1673538010921,208.3,16.036,16.027,26.72]
[1673538011237,252.08,16.035,16.027,26.72]
[1673538011452,20.0,16.034,16.027,21.72]
[1673538011656,63.78,16.033,16.027,21.72]
[1673538011877,20.0,16.032,16.027,21.72]
[1673538012095,20.0,16.034,16.027,21.72]
[1673538014200,270.83725104,16.033,16.014,8.774]
[1673538014408,26.29,16.03,16.015,20.0]
[1673538014827,26.29,16.03,16.016,20.0]
[1673538015037,20.0,16.032,16.017,20.0]
[1673538015249,46.78,16.033,16.018,20.0]
[1673538015671,46.78,16.033,16.019,20.0]
[1673538015875,17.0,16.032,16.019,20.0]
[1673538017244,46.78,16.033,16.019,20.0]
[1673538017462,114.6005,16.035,16.02,20.0]
[1673538017653,46.78,16.034,16.021,20.0]
[1673538018069,20.0,16.033,16.021,20.0]
[1673538018286,46.78,16.034,16.021,20.0]
[1673538020172,46.78,16.034,16.02,20.0]
[1673538020382,17.0,16.033,16.02,20.0]
[1673538020589,20.0,16.032,16.02,20.0]
[1673538020803,46.79,16.032,16.02,20.0]
[1673538021665,20.0,16.031,16.02,20.0]
[1673538022701,26.54,16.03,16.015,7.297]
[1673538022919,252.09,16.029,16.012,6.821]
[1673538023115,371.4501,16.029,16.009,6.98]
[1673538023325,304.2353,16.028,16.009,6.98]
[1673538023548,252.1,16.027,16.008,114.453]
[1673538023795,20.0,16.026,16.008,114.453]
[1673538023986,46.81,16.025,16.008,114.453]
[1673538024315,17.0,16.024,16.008,114.453]
[1673538024520,46.81,16.023,16.008,114.453]
[1673538024825,20.0,16.019,16.003,6.596]
[1673538025147,20.0,16.019,16.0,109.5796]
[1673538025148,46.83,16.018,16.0,109.5796]
[1673538025367,205.3,16.017,16.0,109.5796]
[1673538025560,46.83,16.016,16.0,109.5796]
[1673538025771,37.0,16.015,16.0,109.5796]
[1673538026198,66.84,16.014,16.0,109.5796]
[1673538026409,20.0,16.014,16.0,109.5796]
[1673538028185,20.0,16.014,16.001,20.0]
[1673538028815,17.0,16.013,16.001,20.0]
[1673538029017,26.34,16.01,16.001,20.0]
[1673538029232,188.3,16.009,15.981,116.82875577]
[1673538029465,46.86,16.008,15.988,114.952]
[1673538029655,20.0,16.007,15.988,114.952]
[1673538029863,63.86,16.006,15.988,114.952]
[1673538030074,20.0,16.005,15.97,132.2]
[1673538030296,20.0,16.005,15.962,90.57178673]
[1673538030297,132.95,15.99,15.962,90.57178673]
[1673538030506,46.89,15.998,15.971,1.8958312]
[1673538030717,20.0,15.998,15.972,27.02744]
[1673538030926,46.88,15.999,15.973,7.027]
[1673538031148,26.61,16.0,15.98,26.47]
[1673538031678,26.61,16.0,15.981,21.8958312]
[1673538031987,26.61,16.0,15.981,21.83970265]
[1673538032179,26.61,16.0,15.981,20.0]
[1673538032382,26.61,16.0,15.982,1.83970265]
[1673538032588,26.61,16.0,15.982,21.83970265]
[1673538032802,26.61,16.0,15.982,20.0]
[1673538033013,17.0,15.999,15.982,20.0]
[1673538034192,46.89,15.998,15.978,20.0]
[1673538034398,17.0,15.997,15.978,20.0]
[1673538034606,46.89,15.996,15.978,20.0]
[1673538034814,17.0,15.999,15.978,20.0]
[1673538034815,46.89,15.998,15.978,20.0]
[1673538035040,17.0,15.995,15.978,20.0]
[1673538035862,160.3138,15.998,15.978,20.0]
[1673538036068,17.0,15.997,15.978,20.0]
[1673538037114,17.0,15.997,15.979,20.0]
[1673538037974,46.89,15.998,15.979,20.0]
[1673538038287,46.88,15.999,15.979,20.0]
[1673538038500,46.88,15.999,15.98,20.0]
[1673538038709,46.88,15.999,15.981,20.0]
[1673538039348,17.0,15.998,15.981,20.0]
[1673538039669,46.89,15.997,15.981,20.0]
[1673538039982,46.88,15.999,15.981,20.0]
[1673538040191,20.0,15.998,15.981,20.0]
[1673538040400,46.89,15.997,15.981,20.0]
[1673538040596,20.0,15.996,15.978,20.0]
[1673538040807,17.0,15.995,15.978,40.0]
[1673538041228,46.89,15.997,15.978,40.0]
[1673538041439,46.89,15.998,15.979,20.0]
[1673538041664,46.88,15.999,15.979,20.0]
[1673538042276,138.0932,16.0,15.98,26.4]
[1673538042505,26.77,16.0,15.98,26.4]
[1673538042715,26.77,16.0,15.981,48.51510324]
[1673538042910,26.77,16.0,15.981,40.0]
[1673538043437,26.77,16.0,15.983,20.0]
[1673538043655,235.16,16.005,15.984,129.557]
[1673538043859,46.86,16.005,15.985,20.0]
[1673538044067,46.85,16.009,15.985,20.0]
[1673538044277,46.85,16.009,15.986,23.754]
[1673538044492,20.0,16.008,15.987,20.0]
[1673538044711,46.86,16.007,15.988,20.0]
[1673538045560,17.0,16.006,15.988,20.0]
[1673538045870,46.86,16.005,15.988,20.0]
[1673538046068,17.0,16.004,15.988,20.0]
[1673538046483,26.34,16.0,15.988,20.0]
[1673538046695,26.34,16.0,15.986,3.754]
[1673538050161,17.0,15.999,15.986,3.754]
[1673538050388,11.262,15.985,15.979,3.757]
[1673538050608,11.262,15.985,15.978,3.757]
[1673538051438,11.262,15.985,15.977,20.0]
[1673538052800,11.262,15.985,15.978,20.0]
[1673538053003,11.262,15.985,15.979,20.0]
[1673538053206,11.262,15.985,15.98,20.0]
[1673538055742,11.262,15.985,15.981,20.0]
[1673538055946,11.262,15.985,15.982,20.0]
[1673538056473,46.89,15.996,15.982,21.37131651]
[1673538056698,145.5457,16.0,15.982,21.37131651]
[1673538056699,145.5457,16.0,15.983,20.0]
[1673538057024,145.5457,16.0,15.984,20.0]
[1673538057426,145.5457,16.0,15.985,20.0]
[1673538057635,145.5457,16.0,15.986,20.0]
[1673538057850,46.87,16.004,15.987,20.0]
[1673538058057,325.5677,16.008,15.987,20.0]
[1673538058058,46.86,16.007,15.987,20.0]
[1673538058263,20.0,16.006,15.989,20.0]
[1673538058478,46.86,16.005,15.99,20.0]
[1673538059427,20.0,16.004,15.99,20.0]
[1673538060487,46.87,16.003,15.99,20.0]
[1673538060803,17.0,16.002,15.986,20.0]
[1673538060990,20.0,16.001,15.986,20.0]
[1673538061202,20.0,15.999,15.986,20.0]
[1673538061426,46.89,15.998,15.986,15.0]
[1673538061643,17.0,15.997,15.977,20.0]
[1673538061842,188.3,15.995,15.978,20.0]
[1673538062055,20.0,15.993,15.978,20.0]
[1673538062258,46.9,15.992,15.978,20.0]
[1673538062462,63.9,15.992,15.978,20.0]
[1673538062673,46.9,15.992,15.978,20.0]
[1673538062895,46.89,15.996,15.978,20.0]
[1673538063106,46.88,15.999,15.979,20.0]
[1673538063318,46.88,15.999,15.98,46.54]
[1673538063533,26.31,16.0,15.981,23.764]
[1673538063957,26.31,16.0,15.982,20.0]
[1673538064381,113.8922,16.002,15.983,3.764]
[1673538064778,113.8922,16.002,15.983,23.764]
[1673538064987,113.8922,16.002,15.984,20.0]
[1673538065213,113.8922,16.002,15.985,3.764]
[1673538065433,113.8922,16.002,15.986,110.9661]
[1673538065751,113.8922,16.002,15.987,40.0]
[1673538067205,46.87,16.004,15.987,40.0]
[1673538067417,46.86,16.008,15.987,40.0]
[1673538067625,46.86,16.008,15.987,41.33153335]
[1673538067840,46.85,16.009,15.987,41.33153335]
[1673538068049,46.85,16.009,15.987,41.29537568]
[1673538069101,46.85,16.009,15.99,26.47]
[1673538069428,156.919,16.011,15.991,20.0]
[1673538069614,156.919,16.011,15.992,20.0]
[1673538069823,156.919,16.011,15.994,20.0]
[1673538070139,156.919,16.011,15.995,20.0]
[1673538070345,43.33,16.01,15.995,20.0]
[1673538070559,46.85,16.009,15.995,20.0]
[1673538070785,37.0,16.008,15.995,20.0]
[1673538070991,46.86,16.007,15.994,20.0]
[1673538071507,26.33,16.01,15.994,20.0]
[1673538071715,46.84,16.012,15.994,20.0]
[1673538071931,109.6598,16.011,15.994,20.0]
[1673538072151,109.6598,16.011,15.995,20.0]
[1673538074149,26.54,16.01,15.995,20.0]
[1673538076154,26.54,16.01,15.994,40.0]
[1673538076461,109.6598,16.011,15.994,40.0]
[1673538078038,109.6598,16.011,15.995,20.0]
[1673538078247,46.85,16.01,15.995,20.0]
[1673538078770,109.6598,16.011,15.995,20.0]
[1673538078979,17.0,16.01,15.995,20.0]
[1673538080233,109.6598,16.011,15.996,20.0]
[1673538081091,46.85,16.01,15.996,20.0]
[1673538081298,73.19,16.01,15.996,20.0]
[1673538081614,109.6598,16.011,15.993,20.0]
[1673538082020,109.6598,16.011,15.994,20.0]
[1673538082235,109.6598,16.011,15.995,20.0]
[1673538082442,109.6598,16.011,15.995,134.0352]
[1673538083082,109.6598,16.011,15.996,20.0]
[1673538084334,43.29,16.01,15.995,134.0352]
[1673538084756,43.29,16.01,15.986,20.0]
[1673538084757,46.85,16.009,15.986,20.0]
[1673538084985,17.0,16.008,15.986,130.1245]
[1673538085295,26.33,16.0,15.986,110.1245]
[1673538085515,63.88,15.999,15.986,110.1245]
[1673538086646,63.88,15.999,15.98,46.35]
[1673538086857,252.18,15.999,15.978,23.17]
[1673538087195,20.0,15.998,15.978,20.0]
[1673538087506,63.89,15.997,15.978,20.0]
[1673538087721,20.0,15.996,15.978,20.0]
[1673538087908,63.89,15.995,15.978,20.0]
[1673538088653,63.89,15.995,15.979,20.0]
[1673538090235,46.89,15.995,15.979,20.0]
[1673538090444,46.89,15.997,15.979,20.0]
[1673538090870,205.3,15.996,15.979,20.0]
[1673538091075,188.3,15.994,15.979,20.0]
[1673538091302,63.9,15.993,15.977,20.0]
[1673538091911,20.0,15.992,15.977,20.0]
[1673538092123,26.29,15.99,15.975,20.0]
[1673538092348,20.0,15.988,15.975,20.0]
[1673538092575,46.92,15.987,15.962,114.2327]
[1673538092765,17.0,15.986,15.962,114.2327]
[1673538092975,46.92,15.985,15.963,20.0]
[1673538093182,17.0,15.984,15.963,83.14467242]
[1673538093392,46.93,15.983,15.964,31.8592513]
[1673538093613,46.93,15.983,15.964,63.14467242]
[1673538093818,46.93,15.983,15.965,31.28542112]
[1673538094142,46.93,15.983,15.966,20.0]
[1673538094357,46.93,15.983,15.966,51.8592513]
[1673538094563,46.93,15.983,15.967,31.8592513]
[1673538094880,46.93,15.983,15.968,20.0]
[1673538095507,46.93,15.983,15.969,20.0]
[1673538095720,26.34,15.98,15.969,20.0]
[1673538095913,63.94,15.979,15.969,20.0]
[1673538096123,63.94,15.979,15.962,114.2327]
[1673538096124,46.94,15.979,15.964,20.0]
[1673538096357,46.94,15.979,15.965,20.0]
[1673538096565,46.93,15.983,15.966,20.0]
[1673538096755,63.93,15.983,15.966,20.0]
[1673538097086,20.0,15.982,15.966,20.0]
[1673538097280,252.24,15.981,15.966,20.0]
[1673538097701,252.24,15.981,15.963,20.0]
[1673538098030,20.0,15.98,15.963,20.0]
[1673538098354,63.94,15.979,15.963,20.0]
[1673538098539,63.94,15.979,15.964,20.0]
[1673538100023,63.94,15.979,15.963,20.0]
[1673538100348,63.94,15.979,15.937,396.1]
[1673538100349,63.94,15.979,15.95,238.5862274]
[1673538100544,109.0973,15.978,15.955,112.7006]
[1673538100875,20.0,15.976,15.956,20.0]
[1673538101089,63.95,15.975,15.956,20.0]
[1673538101606,63.95,15.975,15.957,20.0]
[1673538101921,63.95,15.975,15.958,20.0]
[1673538102134,63.95,15.975,15.959,20.0]
[1673538105057,46.95,15.975,15.959,20.86591138]
[1673538105393,116.8708,15.976,15.959,20.86591138]
[1673538105584,116.8708,15.976,15.96,20.0]
[1673538110019,26.34,15.98,15.966,20.0]
[1673538110197,63.94,15.979,15.967,20.0]
[1673538111045,188.3,15.978,15.95,132.73]
[1673538111261,235.25,15.977,15.956,139.1189]
[1673538111465,252.25,15.977,15.956,139.1189]
[1673538111692,20.0,15.976,15.956,139.1189]
[1673538111892,63.95,15.975,15.956,139.1189]
[1673538112210,46.95,15.975,15.958,56.98947777]
[1673538112418,46.95,15.975,15.959,20.0]
[1673538112629,46.95,15.975,15.96,26.47]
[1673538112840,114.5545,15.976,15.961,40.0]
[1673538113041,114.5545,15.976,15.961,40.71783813]
[1673538113475,114.5545,15.976,15.961,40.0]
[1673538116194,46.94,15.979,15.961,76.12356639]
[1673538116406,46.93,15.982,15.962,0.52852602]
[1673538116820,46.93,15.982,15.962,36.65209241]
[1673538117046,46.93,15.982,15.964,20.0]
[1673538117260,46.93,15.982,15.965,136.069]
[1673538117470,17.0,15.981,15.965,136.069]
[1673538117660,46.94,15.98,15.966,20.0]
[1673538117874,46.93,15.982,15.967,20.0]
[1673538118728,17.0,15.981,15.967,20.0]
[1673538118940,46.94,15.98,15.967,20.0]
[1673538120622,17.0,15.979,15.961,20.0]
[1673538120837,66.94,15.978,15.957,141.0004]
[1673538121023,20.0,15.977,15.957,141.0004]
[1673538121241,46.95,15.976,15.957,141.0004]
[1673538121466,17.0,15.975,15.957,141.0004]
[1673538121674,46.96,15.974,15.957,141.0004]
[1673538122611,17.0,15.973,15.959,20.0]
[1673538122820,66.96,15.972,15.958,20.0]
[1673538123035,17.0,15.971,15.958,20.0]
[1673538123440,46.97,15.97,15.958,20.0]
[1673538123665,20.0,15.968,15.958,20.0]
[1673538124502,20.0,15.969,15.958,20.0]
[1673538124714,17.0,15.968,15.958,20.0]
[1673538124910,46.97,15.97,15.958,20.0]
[1673538125121,46.96,15.974,15.958,20.0]
[1673538125359,17.0,15.973,15.958,20.0]
[1673538125675,46.96,15.972,15.958,40.0]
[1673538125870,17.0,15.971,15.958,40.0]
[1673538126724,261.6,15.97,15.955,36.12356639]
[1673538127039,261.6,15.97,15.95,26.57]
[1673538127241,73.3,15.97,15.951,0.53299845]
[1673538127443,46.96,15.971,15.952,36.12356639]
[1673538127654,46.96,15.971,15.953,20.0]
[1673538127655,17.0,15.97,15.953,20.0]
[1673538128091,46.96,15.974,15.954,36.12356639]
[1673538128405,46.96,15.974,15.955,20.0]
[1673538128595,46.96,15.974,15.956,20.0]
[1673538129024,46.96,15.974,15.956,56.12356639]
[1673538129236,46.96,15.974,15.957,20.0]
[1673538129446,46.96,15.974,15.958,20.0]
[1673538129657,188.3,15.974,15.958,20.0]
[1673538129873,26.29,15.97,15.958,20.0]
[1673538130065,20.0,15.969,15.954,20.0]
[1673538130275,26.29,15.97,15.954,20.0]
[1673538130489,26.29,15.97,15.955,20.0]
[1673538130819,26.29,15.97,15.956,20.0]
[1673538131030,46.96,15.974,15.956,20.0]
[1673538131246,114.9124,15.975,15.956,56.12356639]
[1673538131554,114.9124,15.975,15.957,20.0]
[1673538131762,46.96,15.974,15.957,20.0]
[1673538131960,46.96,15.974,15.958,20.0]
[1673538132590,20.0,15.973,15.958,20.0]
[1673538133132,26.54,15.97,15.958,20.0]
[1673538133341,26.54,15.97,15.952,128.941]
[1673538133342,20.0,15.968,15.952,108.941]
[1673538133531,235.28,15.967,15.948,20.0]
[1673538133742,17.0,15.966,15.948,20.0]